[Event "Krakow Championship-A 2022"]
[Site "Krakow"]
[Date "2022.06.27"]
[Round "4.17"]
[White "Lim, Zhuo Ren"]
[Black "Easwaralingam, Adesh"]
[Result "1-0"]
[ECO "E04"]
[WhiteElo "2290"]
[BlackElo "2116"]
[Annotator "RC"]
[PlyCount "55"]
[EventDate "2022.06.25"]
[EventType "swiss"]
[EventCountry "POL"]
[SourceTitle "playchess.com"]
[Source "ChessBase"]
[SourceQuality "1"]
[TimeControl "40/5400+30:1800+30"]

1. d4 {[%emt 0:04:25]} Nf6 {[%emt 0:00:31]} 2. Nf3 {[%emt 0:00:20]} d5 {[%emt 0:00:48]} 3. c4 {[%emt 0:00:15]} e6 {[%emt 0:00:38]} 4. g3 {[%emt 0:00:30]} dxc4 {[%emt 0:01:33]} 5. Bg2 {[%emt 0:00:23]} Nc6 {[%emt 0:01:29]} 6. O-O {[%emt 0:01:17]} Rb8 {[%emt 0:02:27]} 7. Be3 {[%emt 0:07:42]} b5 {[%emt 0:09:35]} 8. a4 {[%emt 0:00:57]} a6 {[%emt 0:01:29]} 9. axb5 {[%emt 0:00:44]} axb5 {[%emt 0:00:59]} 10. b3 {[%emt 0:03:50]} cxb3 {[%emt 0:07:15]} 11. Qxb3 {[%emt 0:00:23]} Bd6 {[%emt 0:06:28]} 12. Rc1 {[%emt 0:02:30]} Bd7 {[%emt 0:01:39]} 13. Qb2 {[%emt 0:00:57]} Nd5 {[%emt 0:05:14]} 14. Bg5 {[%emt 0:02:22]} f6 {[%emt 0:06:10]} 15. Bd2 {[%emt 0:01:54]} Nb6 {[%emt 0:08:54]} 16. Qxb5 {[%emt 0:08:14]} Ne5 {[%emt 0:16:26]} 17. Qb3 {[%emt 0:05:12]} Nbc4 {[%emt 0:03:29]} 18. Qd1 {[%emt 0:00:51]} Nxf3+ {[%emt 0:00:49]} 19. Bxf3 {[%emt 0:00:08]} Nxd2 {[%emt 0:01:02]} 20. Nxd2 {[%emt 0:00:19]} O-O {[%emt 0:01:21]} 21. Ne4 {[%emt 0:01:41]} Bc8 {[%emt 0:02:49]} 22. Ra7 {[%emt 0:05:07]} Rf7 {[%emt 0:01:28]} 23. Qc2 {[%emt 0:04:52]} Qe8 {[%emt 0:08:22]} 24. Nxd6 {[%emt 0:01:15]} cxd6 {[%emt 0:00:07]} 25. Rxf7 {[%emt 0:00:02]} Kxf7 {[%emt 0:00:30]} 26. Qxh7 {[%emt 0:01:10]} Qg8 {[%emt 0:01:41]} 27. Rc7+ {[%emt 0:01:16]} Kf8 {[%emt 0:00:06]} 28. Qc2 {[%emt 0:00:41]} 1-0

[Event "Krakow Championship-A 2022"]
[Site "Krakow"]
[Date "2022.06.27"]
[Round "4.18"]
[White "Michalicka, Milan"]
[Black "Szustakowski, Antoni"]
[Result "0-1"]
[ECO "E33"]
[WhiteElo "2222"]
[BlackElo "2265"]
[Annotator "TA"]
[PlyCount "74"]
[EventDate "2022.06.25"]
[EventType "swiss"]
[EventCountry "POL"]
[SourceTitle "playchess.com"]
[Source "ChessBase"]
[SourceQuality "1"]
[TimeControl "40/5400+30:1800+30"]

{[%evp 17,74,18,33,28,31,14,29,18,55,46,56,0,0,0,9,-52,-64,-86,-30,-176,-176,-187,-144,-176,-209,-216,-216,-257,-165,-276,-262,-325,-254,-445,-431,-407,-333,-334,-298,-274,-281,-296,-296,-366,-348,-332,-282,-564,-564,-883,-759,-29988,-29989,-29988,-29983,-29983,-29984,-29972,-29973]} 1. d4 {[%emt 0:00:03]} Nf6 {[%emt 0:00:09]} 2. c4 {[%emt 0:00:16]} e6 {[%emt 0:00:05]} 3. Nc3 {[%emt 0:00:12]} Bb4 {[%emt 0:00:28]} 4. Qc2 {[%emt 0:00:16]} Nc6 {[%emt 0:02:43]} 5. Nf3 {[%emt 0:00:22]} d6 {[%emt 0:00:11]} 6. Bd2 {[%emt 0:00:19]} O-O {[%emt 0:01:03]} 7. a3 {[%emt 0:00:17]} Bxc3 {[%emt 0:00:06]} 8. Bxc3 {[%emt 0:00:05]} Qe7 {[%emt 0:01:39]} 9. e3 {[%emt 0:00:37]} e5 {[%emt 0:00:28] The main line 9...e5 scores better than 9...a5.} 10. d5 {[%emt 0:00:18] E33: Nimzo-Indian: Classical: 4...Nc6.} Nb8 {[%emt 0:00:25][%cal Ob7b5]} 11. Nd2 {[%emt 0:01:05]} a5 {[%emt 0:03:29]} (11... b5 $5) 12. b3 {[%emt 0:00:53] [#] White has an edge.} e4 $146 {[%emt 0:10:46]} ({Predecessor:} 12... b5 13. Be2 bxc4 14. bxc4 Nbd7 15. Nb3 a4 16. Nd2 Nc5 17. O-O Bd7 18. Bb4 Na6 {1-0 (42) Esipenko,A (2705)-Tregubov,P (2543) Chartres 2022}) 13. Be2 {[%emt 0:01:06]} Bf5 {[%emt 0:01:47]} 14. g4 {[%emt 0:09:46]} (14. O-O $14) 14... Bxg4 $11 {[%emt 0:06:09]} 15. Bxg4 {[%emt 0:01:09]} Nxg4 {[%emt 0:00:06]} 16. Rg1 {[%emt 0:17:03]} (16. Qxe4 $11 Qxe4 17. Nxe4) 16... f5 $15 {[%emt 0:14:00]} 17. O-O-O {[%emt 0:14:15][%cal Od2e4]} Ne5 {[%emt 0:03:09]} (17... Nd7 $17 {aiming for ...a4.} 18. Nxe4 g6) 18. Kb1 {[%emt 0:02:57] Loses the game.} (18. f4 $11 {and White has nothing to worry.} Nd3+ 19. Kb1) 18... Nbd7 $19 {[%emt 0:01:46]} 19. f3 {[%emt 0:01:53]} a4 {[%emt 0:01:54]} 20. b4 {[%emt 0:01:00]} exf3 {[%emt 0:16:43]} 21. Nxf3 {[%emt 0:00:15]} Nxc4 {[%emt 0:00:02] Pair of Knights!} (21... Nxf3 22. Rxg7+ Qxg7 23. Bxg7 Kxg7 24. Qg2+ Kh8 25. Qxf3 $18) 22. Qe2 {[%emt 0:09:40]} Nde5 {[%emt 0:04:53]} ({And not} 22... Nxa3+ 23. Ka2 g6 24. Kxa3 $11) 23. Ka2 {[%emt 0:03:26]} (23. Rxg7+ {might work better.} Qxg7 24. Rg1 Nxa3+ 25. Ka2 Qxg1 26. Nxg1) 23... Rf6 {[%emt 0:02:09][%cal Bf8f6,Bf6f4,Bf4f3][%mdl 32]} ({Not} 23... b5 $2 24. Nd4 $19) 24. Nd4 {[%emt 0:02:18]} Qf7 {[%emt 0:04:05] Threatens to win with ...Nb6.} 25. Nf3 $2 {[%emt 0:07:30] [#]} (25. Ne6 Rxe6 26. dxe6 Qxe6 27. Ka1) 25... Nxf3 {[%emt 0:01:09]} ({Don't go for} 25... b5 $2 26. Ng5 Qe7 27. Rc1 $19) 26. Qxf3 {[%emt 0:04:19]} Ne5 {[%emt 0:00:05]} 27. Qe2 {[%emt 0:01:34]} f4 {[%emt 0:03:02]} 28. exf4 {[%emt 0:04:39]} Rxf4 {[%emt 0:00:18] [#] ...Rf2 is the strong threat.} 29. Rd2 {[%emt 0:00:49]} Re8 {[%emt 0:02:23]} 30. Qb5 {[%emt 0:00:35]} c6 {[%emt 0:00:11]} 31. Qxa4 {[%emt 0:00:15]} cxd5 {[%emt 0:00:12] Strongly threatening ...d4+.} 32. Qb3 $2 {[%emt 0:01:07]} (32. Ka1) 32... Rf3 {[%emt 0:01:25] White must now prevent ...Nc4.} 33. Rgd1 {[%emt 0:03:57]} Rc8 {[%emt 0:01:03]} 34. Rxd5 {[%emt 0:02:44]} Rcxc3 {[%emt 0:00:57] Black mates.} 35. Qa4 {[%emt 0:00:10]} Rxa3+ {[%emt 0:00:22]} 36. Qxa3 {[%emt 0:00:10]} Rxa3+ {[%emt 0:00:03]} 37. Kxa3 {[%emt 0:00:05]} Nc4+ {[%emt 0:00:02] Weighted Error Value: White=0.92/Black=0.18 (very precise)} 0-1

[Event "Krakow Championship-A 2022"]
[Site "Krakow"]
[Date "2022.06.27"]
[Round "4.19"]
[White "Sieber, Fiona"]
[Black "Torkkola, Henri"]
[Result "1-0"]
[ECO "B12"]
[WhiteElo "2264"]
[BlackElo "2197"]
[Annotator "TA"]
[PlyCount "94"]
[EventDate "2022.06.25"]
[EventType "swiss"]
[EventCountry "POL"]
[SourceTitle "playchess.com"]
[Source "ChessBase"]
[SourceQuality "1"]
[TimeControl "40/5400+30:1800+30"]

{[%evp 9,94,-17,-30,-50,-56,-62,-65,-56,-48,-70,-60,-72,-92,-108,-77,-64,-66,-90,-23,-46,137,145,150,-135,-135,-114,52,68,139,131,227,182,194,148,195,191,252,274,266,277,271,268,269,261,266,262,264,247,433,437,447,411,537,533,515,495,661,651,664,645,671,649,974,1008,965,950,1027,935,1315,1281,1703,1325,4345,4286,6187,6187,29979,29981,29981,29982,29984,29982,29982,29983,29980,29976,29988]} 1. e4 {[%emt 0:00:03]} c6 {[%emt 0:04:37]} 2. d4 {[%emt 0:00:02]} d5 {[%emt 0:00:07]} 3. e5 {[%emt 0:00:03]} Bf5 {[%emt 0:00:06]} 4. h4 {[%emt 0:00:06]} h5 {[%emt 0:00:06]} 5. Bg5 {[%emt 0:00:14]} Qb6 {[%emt 0:00:24]} 6. Bd3 {[%emt 0:00:04] [#] B12: Caro-Kann: Advance Variation.} Qxd4 $1 {[%emt 0:02:49]} 7. Nf3 $1 {[%emt 0:00:08]} Qg4 {[%emt 0:00:05]} 8. Bxf5 $1 {[%emt 0:00:08] Black is slightly better. 8.Bxf5 is better than 8.0-0.} Qxf5 {[%emt 0:00:05]} 9. O-O {[%emt 0:00:04][%cal Oc2c4]} f6 {[%emt 0:01:36]} 10. c4 {[%emt 0:00:31][%cal Od1b3]} fxg5 {[%emt 0:28:39]} 11. cxd5 {[%emt 0:00:26] [#]} cxd5 $146 {[%emt 0:00:05]} ({Predecessor:} 11... g4 12. Ng5 cxd5 13. Qxd5 Nc6 14. Nc3 Rd8 15. Qb5 e6 16. Qxb7 Nge7 17. Nb5 Na5 {0-1 (40) Lucas,A (2283)-Joie,S (2393) Europe Echecs INT 2020}) 12. Nc3 {[%emt 0:00:11]} Nc6 $1 {[%emt 0:01:26]} 13. Qb3 {[%emt 0:01:00]} O-O-O {[%emt 0:27:31]} ({Much worse is} 13... Nxe5 $6 14. Qb5+ Nc6 15. Nxd5 $11) ({Black should play} 13... g4 $17 14. Nxd5 O-O-O) 14. Rac1 {[%emt 0:00:29]} Qd7 $2 {[%emt 0:07:16]} (14... Qd3 $15 {keeps the upper hand.} 15. Nxg5 Rh6) 15. e6 $1 $16 {[%emt 0:11:37] White is more active.} Qxe6 {[%emt 0:00:34]} 16. Nxg5 $2 {[%emt 0:00:04]} (16. hxg5 $16 {aiming for Nb5.} Kb8 17. Nb5) 16... Qd7 $1 $17 {[%emt 0:08:23]} 17. Nf7 {[%emt 0:03:06][%cal Bg5f7,Bf7h8,Bh8g6,Bg6e7][%mdl 32] [#]} e6 $2 {[%emt 0:00:06]} 18. Nxh8 $14 {[%emt 0:01:00] Black must now prevent Nb5.} Bd6 {[%emt 0:00:04] White now steadily converts the win.} (18... Nf6 $14) 19. Nb5 $16 {[%emt 0:05:02]} Bb8 {[%emt 0:01:17]} (19... Rf8 $16) 20. Ng6 {[%emt 0:12:35] And now Rfe1 would win.} Nge7 {[%emt 0:00:06]} 21. Nxe7+ {[%emt 0:03:00]} Qxe7 {[%emt 0:00:01]} 22. Qh3 {[%emt 0:00:22] Strongly threatening Rfe1.} a6 {[%emt 0:04:33]} (22... Re8 $142 23. Nd4 Qd6) 23. Nd4 $1 $18 {[%emt 0:00:33]} Kd7 {[%emt 0:00:04] [#]} 24. Rxc6 {[%emt 0:06:50][%mdl 512]} bxc6 {[%emt 0:00:11]} 25. Re1 {[%emt 0:00:03][%cal Re1e6]} Re8 {[%emt 0:07:28]} 26. Rxe6 {[%emt 0:08:26]} ({But not} 26. Nxe6 $6 Qxe6 27. Rxe6 Rxe6 $18) 26... Qxe6 {[%emt 0:00:05]} 27. Nxe6 {[%emt 0:00:03]} Rxe6 {[%emt 0:00:03][%mdl 4096] Endgame KQ-KRB} 28. Kf1 {[%emt 0:00:09]} d4 $2 {[%emt 0:03:23]} (28... Bc7 {is a better defense.} 29. Qc3 Rf6) 29. b4 {[%emt 0:06:24]} Bc7 {[%emt 0:02:34]} 30. Qf5 {[%emt 0:09:13]} g6 {[%emt 0:00:38]} 31. Qf7+ {[%emt 0:00:30]} Kd6 {[%emt 0:00:01]} 32. Qf4+ {[%emt 0:01:06]} Re5 {[%emt 0:01:28]} 33. Qxd4+ {[%emt 0:00:10]} Ke6 {[%emt 0:00:06]} 34. Qc4+ {[%emt 0:00:42]} Kd6 {[%emt 0:00:44]} 35. Qxa6 {[%emt 0:00:32]} Bd8 {[%emt 0:00:09]} 36. Qd3+ {[%emt 0:00:24]} Rd5 {[%emt 0:00:17]} 37. Qxg6+ {[%emt 0:00:07]} Kc7 {[%emt 0:00:06]} 38. g3 {[%emt 0:00:47]} Kb6 {[%emt 0:00:10]} 39. a4 {[%emt 0:01:53][%cal Ba2a4,Ba4a5,Ba5a6,Ba6a7][%mdl 32] b5 is the strong threat.} Be7 {[%emt 0:00:10]} 40. b5 {[%emt 0:01:43]} Bd6 {[%emt 0:00:05]} 41. Qe8 {[%emt 0:40:06]} cxb5 {[%emt 0:30:51]} 42. a5+ {[%emt 0:00:11]} Kc5 {[%emt 0:01:57]} 43. a6 {[%emt 0:02:08] White mates.} Rd1+ {[%emt 0:00:06]} 44. Ke2 {[%emt 0:01:12]} Ra1 {[%emt 0:00:07]} 45. a7 {[%emt 0:00:28]} Ra2+ {[%emt 0:00:04]} 46. Kf3 {[%emt 0:00:15]} Ra3+ {[%emt 0:00:05] [#]} 47. Qe3+ $3 {[%emt 0:00:49][%mdl 512]} Kd5 {Weighted Error Value: White=0.22 (precise) /Black=0.57} (47... Rxe3+ 48. fxe3) 1-0

[Event "Krakow Championship-A 2022"]
[Site "Krakow"]
[Date "2022.06.27"]
[Round "4.20"]
[White "Malicka, Maria"]
[Black "Shehzad, Shazil"]
[Result "1/2-1/2"]
[ECO "C88"]
[WhiteElo "2377"]
[BlackElo "2237"]
[Annotator "TA"]
[PlyCount "83"]
[EventDate "2022.06.25"]
[EventType "swiss"]
[EventCountry "POL"]
[SourceTitle "playchess.com"]
[Source "ChessBase"]
[SourceQuality "1"]
[TimeControl "40/5400+30:1800+30"]

{[%evp 20,83,22,21,37,25,28,20,25,15,15,27,50,10,63,36,35,41,18,0,0,0,0,0,0,-33,0,0,-7,0,0,-2,-4,-4,0,0,0,0,0,0,0,-152,0,0,0,0,0,0,0,0,0,0,0,0,0,0,325,325,313,24,20,0,275,0,55,0]} 1. e4 e5 {[%emt 0:06:06]} 2. Nf3 {[%emt 0:00:09]} Nc6 {[%emt 0:00:12]} 3. Bb5 {[%emt 0:00:03]} a6 {[%emt 0:00:19]} 4. Ba4 {[%emt 0:00:04]} Nf6 {[%emt 0:00:05]} 5. O-O {[%emt 0:00:07]} Be7 {[%emt 0:00:13]} 6. Re1 {[%emt 0:00:22]} b5 {[%emt 0:00:04]} 7. Bb3 {[%emt 0:00:04]} O-O {[%emt 0:00:04]} 8. a4 {[%emt 0:01:23]} Bb7 {[%emt 0:03:08]} 9. Nc3 {[%emt 0:15:10]} b4 {[%emt 0:04:42]} 10. Nd5 {[%emt 0:00:14]} Na5 {[%emt 0:01:01]} 11. Ba2 $1 {[%emt 0:08:08]} b3 {[%emt 0:04:50] C88: Closed Ruy Lopez: Anti-Marshall Systems.} 12. Nxf6+ {[%emt 0:01:12]} Bxf6 {[%emt 0:00:07]} 13. cxb3 {[%emt 0:00:12]} d5 {[%emt 0:30:12] [#] The position is equal.} 14. d4 $146 {[%emt 0:06:26]} ({Predecessor:} 14. exd5 e4 15. Rxe4 Qxd5 16. Re1 Nc6 17. b4 Qh5 18. Bc4 Nxb4 19. Ra3 Rad8 20. Rae3 {0-1 (65) Sahl,B (2440)-Hebden,M (2570) Isle of Man 1995}) 14... dxe4 {[%emt 0:03:10]} (14... exd4 15. e5 Be7 16. Nxd4 $16) 15. Nxe5 {[%emt 0:00:26]} c5 {[%emt 0:07:54]} 16. Be3 {[%emt 0:11:45]} (16. Qg4 $5 {[%cal Re5d7]}) 16... Qd6 {[%emt 0:02:18]} (16... Rc8 $11) 17. Nxf7 {[%emt 0:12:00]} Rxf7 {[%emt 0:07:34]} 18. dxc5 {[%emt 0:00:16]} Qe6 {[%emt 0:02:14]} (18... Qxd1 $2 19. Rexd1 Bc6 20. b4 $18) 19. b4 {[%emt 0:13:31][%csl LRa5,LRe6]} Nc4 {[%emt 0:00:37]} 20. Qd6 {[%emt 0:16:05]} Qxd6 {[%emt 0:08:36]} (20... Nxd6 $2 21. Bxe6 Re8 22. Bxf7+ Nxf7 23. b5 $18) 21. cxd6 {[%emt 0:00:02]} Nxe3 {[%emt 0:02:25]} ({Don't take} 21... Nxd6 22. Rad1 Be7 23. Bg5 $1 {[%mdl 512]} Bxg5 24. Rxd6 $16) 22. Rxe3 {[%emt 0:00:13] [#]} (22. fxe3 $5 {[%cal Ra1c1]} Kf8 23. Bxf7 Kxf7 24. Rec1 $11) 22... Rd8 $1 {[%emt 0:00:37][%cal Od8d6]} 23. Rd1 {[%emt 0:02:41]} ({But not} 23. Bxf7+ Kxf7 24. b5 axb5 $15) 23... Kf8 {[%emt 0:00:52]} 24. Bxf7 {[%emt 0:00:18]} Kxf7 {[%emt 0:00:02]} 25. b5 {[%emt 0:04:02]} axb5 {[%emt 0:02:38]} 26. Rb3 {[%emt 0:00:17]} ({Much weaker is} 26. axb5 Ke6 $15) 26... Ke6 {[%emt 0:00:57]} 27. Rxb5 {[%emt 0:00:14]} Bc6 {[%emt 0:00:33]} 28. Rb4 {[%emt 0:01:44]} Be5 {[%emt 0:02:15]} 29. a5 {[%emt 0:01:56]} Rxd6 {[%emt 0:02:48][%cal Rd6d1]} 30. Ra1 {[%emt 0:02:45]} (30. Rxd6+ $11 Kxd6 31. Rb3) 30... e3 $2 {[%emt 0:02:26]} (30... Rd2 $1 $17 {...e3 is the strong threat.} 31. Kf1 Bxb2) 31. fxe3 $11 {[%emt 0:01:06]} Rd2 {[%emt 0:00:19][%csl LRb2,LRg2]} 32. Rb6 {[%emt 0:01:30]} Kd7 {[%emt 0:01:30]} 33. a6 {[%emt 0:01:09][%cal Ob6c6]} Rxg2+ {[%emt 0:00:58]} 34. Kf1 {[%emt 0:00:01][%cal Ob6c6]} Rxh2 {[%emt 0:00:17]} 35. Ra5 $1 {[%emt 0:01:31]} Bg2+ {[%emt 0:04:55]} (35... Bxb2 {[#]} 36. Rxc6 $1 {[%mdl 512]} Rh3 37. Rc8 $3 {[%mdl 512]} Rh1+ 38. Kg2 $18) 36. Kg1 {[%emt 0:00:13]} Bc7 {[%emt 0:00:25] This bishop pair is nice.} 37. Rg5 {[%emt 0:01:03][%csl LRg2,LRg7]} Be4 $2 {[%emt 0:00:53][%mdl 8192]} (37... g6 $11 {and Black has nothing to worry.}) 38. Rxg7+ $18 {[%emt 0:00:12]} Kc8 {[%emt 0:00:22] Hoping for ...Rh1+.} 39. Rg8+ $2 {[%emt 0:00:41]} (39. Re6 $18 {Re8+ would kill now.} Rh1+ 40. Kf2 Rh2+ 41. Kf1 Rh1+ 42. Ke2 Rh2+ 43. Kf1 Rh1+ 44. Ke2 Rh2+ 45. Kd1 Rh1+ 46. Ke2) 39... Kd7 $11 {[%emt 0:00:10] aiming for ...Rh1+.} 40. Rg7+ $2 {[%emt 0:00:18][%mdl 8192]} (40. Rb3 $11) 40... Kc8 $18 {[%emt 0:00:11]} 41. Rg8+ $2 {[%emt 0:30:34]} (41. Re6 $18 {White wants to mate with Re8+.} Rh1+ 42. Kf2 Rh2+ 43. Kf1 Rh1+ 44. Ke2 Rh2+ 45. Kf1 Rh1+ 46. Ke2 Rh2+ 47. Kd1 Rh1+ 48. Ke2) 41... Kd7 $14 {[%emt 0:30:44] Strongly threatening ...Rh1+.} 42. Rg7+ {[%emt 0:00:00] Weighted Error Value: White=0.46/Black=0.30} (42. Rb3 $14) 1/2-1/2

[Event "Krakow Championship-A 2022"]
[Site "Krakow"]
[Date "2022.06.27"]
[Round "4.21"]
[White "Goroshkov, Maksym"]
[Black "Trybus, Daniel"]
[Result "1-0"]
[ECO "B21"]
[WhiteElo "2226"]
[BlackElo "2145"]
[Annotator "RC"]
[PlyCount "65"]
[EventDate "2022.06.25"]
[EventType "swiss"]
[EventCountry "POL"]
[SourceTitle "playchess.com"]
[Source "ChessBase"]
[SourceQuality "1"]
[TimeControl "40/5400+30:1800+30"]

1. e4 {[%emt 0:00:07]} c5 {[%emt 0:00:02]} 2. d4 {[%emt 0:00:03]} cxd4 3. c3 dxc3 {[%emt 0:00:12]} 4. Nxc3 {[%emt 0:00:02]} Nc6 {[%emt 0:00:07]} 5. Nf3 {[%emt 0:00:02]} a6 {[%emt 0:00:12]} 6. Bc4 {[%emt 0:00:33]} e6 {[%emt 0:00:05]} 7. a4 {[%emt 0:00:39]} Qc7 {[%emt 0:02:03]} 8. Qe2 {[%emt 0:00:06]} Nf6 {[%emt 0:02:31]} 9. e5 {[%emt 0:05:28]} Ng4 {[%emt 0:01:39]} 10. Bf4 {[%emt 0:00:05]} d5 {[%emt 0:00:46]} 11. exd6 {[%emt 0:01:42]} Bxd6 {[%emt 0:01:05]} 12. Nd5 {[%emt 0:03:09]} Qa5+ {[%emt 0:01:48]} 13. Bd2 {[%emt 0:07:52]} Qd8 {[%emt 0:00:38]} 14. Bg5 {[%emt 0:10:36]} Qa5+ {[%emt 0:08:36]} 15. Bd2 {[%emt 0:00:04]} Qd8 {[%emt 0:00:09]} 16. Bg5 {[%emt 0:07:06]} f6 {[%emt 0:05:01]} 17. Bd2 {[%emt 0:12:30]} Nge5 {[%emt 0:05:38]} 18. Ne3 {[%emt 0:00:09]} Nxc4 {[%emt 0:02:26]} 19. Qxc4 {[%emt 0:01:36]} O-O {[%emt 0:01:13]} 20. O-O {[%emt 0:02:24]} Qe7 {[%emt 0:02:40]} 21. Nf5 {[%emt 0:00:22]} Qc7 {[%emt 0:01:39]} 22. Nxd6 {[%emt 0:07:24]} Qxd6 {[%emt 0:00:36]} 23. Rad1 {[%emt 0:00:25]} Qe7 {[%emt 0:01:00]} 24. b4 {[%emt 0:01:53]} Bd7 {[%emt 0:09:01]} 25. b5 {[%emt 0:01:14]} axb5 {[%emt 0:01:57]} 26. axb5 {[%emt 0:00:01]} Na7 {[%emt 0:01:47]} 27. Bb4 {[%emt 0:00:24]} Qf7 {[%emt 0:01:28]} 28. Bxf8 {[%emt 0:00:11]} Bxb5 {[%emt 0:01:07]} 29. Qa2 {[%emt 0:00:04]} Bxf1 {[%emt 0:01:43]} 30. Bc5 {[%emt 0:00:05]} Bxg2 {[%emt 0:18:08]} 31. Kxg2 {[%emt 0:00:20]} Qg6+ {[%emt 0:00:02]} 32. Kf1 {[%emt 0:01:21]} Qe4 {[%emt 0:02:02]} 33. Re1 {[%emt 0:02:16]} 1-0

[Event "Krakow Championship-A 2022"]
[Site "Krakow"]
[Date "2022.06.27"]
[Round "4.22"]
[White "Turski, Bartlomiej"]
[Black "Kvaloy, Aksel Bu"]
[Result "1/2-1/2"]
[ECO "B32"]
[WhiteElo "2192"]
[BlackElo "2296"]
[Annotator "TA"]
[PlyCount "84"]
[EventDate "2022.06.25"]
[EventType "swiss"]
[EventCountry "POL"]
[SourceTitle "playchess.com"]
[Source "ChessBase"]
[SourceQuality "1"]
[TimeControl "40/5400+30:1800+30"]

{[%evp 19,84,38,34,-7,-5,-2,33,9,12,13,18,6,6,2,0,-12,4,0,0,0,0,-13,0,0,0,0,9,6,6,8,7,10,11,0,11,0,0,-6,0,0,0,0,0,0,0,0,0,0,16,0,4,0,0,0,0,0,0,0,0,0,0,0,10,10,10,10,10]} 1. e4 {[%emt 0:00:03]} c5 {[%emt 0:00:31]} 2. Nf3 {[%emt 0:00:07]} Nc6 {[%emt 0:00:21]} 3. d4 {[%emt 0:00:17]} cxd4 {[%emt 0:00:09]} 4. Nxd4 {[%emt 0:00:04]} e5 {[%emt 0:00:20]} 5. Nb5 {[%emt 0:00:15]} a6 {[%emt 0:00:26]} 6. Nd6+ {[%emt 0:00:14]} Bxd6 {[%emt 0:00:15]} 7. Qxd6 {[%emt 0:00:02]} Qf6 {[%emt 0:00:20]} 8. Qc7 {[%emt 0:05:21]} Nge7 {[%emt 0:01:01]} 9. Nc3 {[%emt 0:12:59]} Nb4 {[%emt 0:02:05]} 10. Bd3 {[%emt 0:03:24]} d5 {[%emt 0:02:21]} 11. Nxd5 {[%emt 0:11:41] B32: Sicilian: Löwenthal and Kalashnikov Variations.} Nexd5 {[%emt 0:02:24]} 12. exd5 {[%emt 0:00:59]} Nxd5 {[%emt 0:03:06]} 13. Qc5 {[%emt 0:09:44] White is slightly better.} (13. Qa5 $5 {[%cal Ra5d5]} Be6 14. Bb5+ Kf8 15. Bd3 $11) 13... Be6 {[%emt 0:03:44][%cal Oe5e4] The position is equal.} 14. O-O {[%emt 0:02:45]} Rc8 {[%emt 0:04:01]} 15. Qa3 {[%emt 0:01:11]} Qe7 {[%emt 0:11:24]} 16. Qxe7+ {[%emt 0:07:31]} Kxe7 {[%emt 0:00:12] [#]} 17. Re1 $146 {[%emt 0:03:50]} ({Predecessor:} 17. Bd2 Rhd8 18. Rfe1 Kf6 19. Rad1 Bf5 20. Bxf5 Kxf5 21. c3 f6 22. f3 b5 23. Kf2 {0-1 (32) Gasimov,P (2337)-Orantes Taboada,F (2286) Chess.com INT 2021}) 17... f6 {[%emt 0:07:02]} 18. Bd2 {[%emt 0:00:27] Prevents Nb4.} Kf7 {[%emt 0:01:38]} 19. Rad1 {[%emt 0:02:38]} Rhd8 {[%emt 0:02:01]} 20. b3 {[%emt 0:02:26]} Rd7 {[%emt 0:13:50]} 21. c4 {[%emt 0:08:44]} (21. Bxh7 $2 g6 22. c4 Ne7 $19) 21... Ne7 {[%emt 0:01:54]} 22. Ba5 {[%emt 0:04:06]} ({Avoid the trap} 22. Bxh7 $2 Rcd8 23. Re2 g6 $19) 22... b5 {[%emt 0:10:38]} 23. cxb5 {[%emt 0:10:22]} axb5 {[%emt 0:00:20]} 24. Bxb5 {[%emt 0:02:33] A strong pair of Bishops.} Ra7 {[%emt 0:01:46]} 25. b4 {[%emt 0:02:12]} Bxa2 {[%emt 0:00:38]} 26. Rc1 {[%emt 0:03:22]} Rb8 {[%emt 0:02:37]} 27. Bd3 {[%emt 0:01:39]} Be6 {[%emt 0:04:37]} 28. Be4 {[%emt 0:01:37]} ({Much weaker is} 28. Bxh7 g6 29. f4 exf4 $19) 28... Bd5 {[%emt 0:03:30]} 29. Bb1 {[%emt 0:00:43]} g6 {[%emt 0:06:23]} 30. Rc5 {[%emt 0:00:58]} Be6 {[%emt 0:01:13]} 31. Rd1 {[%emt 0:01:36]} Bf5 {[%emt 0:06:23]} 32. Ba2+ {[%emt 0:00:21]} Be6 {[%emt 0:00:11]} 33. Bb1 {[%emt 0:00:13]} Ra6 {[%emt 0:02:23]} 34. Bd3 {[%emt 0:00:59]} Ra7 {[%emt 0:02:41]} 35. Bb1 {[%emt 0:01:33]} Rd7 {[%emt 0:01:58]} 36. Rxd7 {[%emt 0:00:37]} Bxd7 {[%emt 0:00:02]} 37. Be4 {[%emt 0:00:33] Prevents Nc6.} Ke6 {[%emt 0:01:30]} 38. f3 {[%emt 0:00:18]} f5 {[%emt 0:01:22]} 39. Bc2 {[%emt 0:00:36] [#] Black must now prevent Bb3+.} Nc6 {[%emt 0:01:29]} 40. Ba4 {[%emt 0:00:37]} Kd6 {[%emt 0:00:46]} 41. Bxc6 {[%emt 0:30:31]} Bxc6 {[%emt 0:30:14] [#]} 42. Rxe5 $1 {[%emt 0:00:22]} Rxb4 {[%emt 0:00:40] A balanced but interesting game.  Weighted Error Value: White=0.05 (flawless) /Black=0.04 (flawless)} 1/2-1/2